bitfinex/quotes_SOLUSD_20240623
["timestamp","ask_amount","ask_price","bid_price","bid_amount"]
[1719105531634,20.0,134.51,134.47,7.4364]
[1719105532730,20.0,134.51,134.47,100.0]
[1719105532933,20.0,134.51,134.49,7.4352]
[1719105533654,26.51,134.51,134.49,7.4352]
[1719105534242,22.6793,134.55,134.49,100.0]
[1719105534440,26.51,134.54,134.5,7.4345]
[1719105534636,26.51,134.54,134.51,7.4343]
[1719105535246,26.51,134.54,134.5,7.4347]
[1719105536350,33.9428,134.54,134.49,113.9452]
[1719105537463,27.4328,134.54,134.49,107.4352]
[1719105539757,7.4333,134.53,134.49,107.4352]
[1719105540462,7.4333,134.53,134.49,100.0]
[1719105541858,27.4329,134.54,134.49,107.4353]
[1719105543158,20.0,134.54,134.47,107.436]
[1719105543332,20.0,134.54,134.47,100.0]
[1719105543655,7.4337,134.53,134.49,100.0]
[1719105543841,7.4338,134.52,134.49,100.0]
[1719105544158,27.4329,134.54,134.49,107.4354]
[1719105544355,27.4329,134.54,134.5,7.4349]
[1719105545062,20.0,134.54,134.5,7.4349]
[1719105545754,20.0,134.54,134.51,7.4342]
[1719105545963,20.0,134.54,134.52,100.0]
[1719105546164,20.0,134.55,134.52,100.0]
[1719105548060,27.4322,134.55,134.52,100.0]
[1719105548244,27.4322,134.55,134.5,107.4346]
[1719105548958,20.0,134.55,134.51,7.4343]
[1719105549646,20.0,134.55,134.52,100.0]
[1719105550457,20.0,134.55,134.52,107.4337]
[1719105550649,16.3614,134.58,134.54,107.4327]
[1719105550847,7.4289,134.61,134.56,100.0]
[1719105551047,16.3614,134.62,134.58,107.4304]
[1719105551048,23.79,134.62,134.58,107.4304]
[1719105551243,7.4278,134.63,134.58,100.0]
[1719105551470,20.0,134.62,134.59,7.4299]
[1719105551673,20.0,134.62,134.6,100.0]
[1719105551966,20.0,134.63,134.6,100.0]
[1719105552465,27.4268,134.65,134.6,107.4292]
[1719105553950,7.4274,134.64,134.6,100.0]
[1719105554257,20.0,134.63,134.6,100.0]
[1719105554449,20.0,134.63,134.59,7.4298]
[1719105554660,20.0,134.63,134.58,107.4304]
[1719105554964,7.4272,134.64,134.6,7.4293]
[1719105555174,27.4277,134.63,134.59,7.4299]
[1719105555478,7.4277,134.63,134.59,7.4299]
[1719105555666,7.4277,134.63,134.58,100.0]
[1719105555667,7.4277,134.63,134.58,107.4303]
[1719105557451,7.4274,134.64,134.59,7.4299]
[1719105557668,20.0,134.63,134.6,100.0]
[1719105557856,27.4268,134.65,134.6,107.4292]
[1719105558262,27.4268,134.65,134.61,7.4288]
[1719105559452,6.5,134.64,134.61,7.4288]
[1719105559658,20.0,134.63,134.61,7.4288]
[1719105559858,6.5,134.64,134.61,7.4288]
[1719105560279,26.5,134.65,134.61,7.4288]
[1719105560780,20.0,134.65,134.62,100.0]
[1719105560959,6.5,134.66,134.62,100.0]
[1719105561368,20.0,134.65,134.6,100.0]
[1719105561574,6.5,134.63,134.6,107.4293]
[1719105562370,7.4272,134.64,134.6,107.4293]
[1719105562571,27.4267,134.65,134.6,107.4293]
[1719105562824,6.5,134.63,134.6,107.4293]
[1719105563268,13.9281,134.63,134.58,129.6858]
[1719105563455,6.5,134.61,134.58,100.0]
[1719105563656,26.5,134.62,134.58,100.0]
[1719105563876,26.5,134.62,134.6,107.4294]
[1719105564180,16.2915,134.64,134.6,107.4294]
[1719105564181,6.5,134.64,134.61,7.4288]
[1719105564561,7.4263,134.66,134.61,7.4288]
[1719105564775,6.5,134.64,134.61,7.4288]
[1719105565565,6.5,134.63,134.58,106.5]
[1719105565767,6.5,134.61,134.58,100.0]
[1719105566783,6.5,134.59,134.56,7.4313]
[1719105566971,6.5,134.58,134.56,7.4313]
[1719105567385,27.4294,134.6,134.56,7.4313]
[1719105568693,20.0,134.6,134.56,7.4313]
[1719105570982,20.0,134.6,134.57,7.4309]
[1719105571187,20.0,134.6,134.55,100.0]
[1719105571998,20.0,134.6,134.58,7.4304]
[1719105572285,20.0,134.6,134.57,7.4308]
[1719105572489,20.0,134.6,134.58,7.4303]
[1719105572672,20.0,134.62,134.58,7.4303]
[1719105572872,20.0,134.62,134.56,7.4311]
[1719105573175,6.4288,134.61,134.56,7.4311]
[1719105573385,27.4296,134.6,134.55,107.4318]
[1719105573574,7.4301,134.59,134.54,7.4324]
[1719105573775,20.0,134.6,134.56,7.4316]
[1719105573973,20.0,134.6,134.54,7.4325]
[1719105574289,7.4301,134.59,134.54,7.4325]
[1719105574494,20.0,134.58,134.54,7.4325]
[1719105574792,27.4308,134.58,134.53,7.4329]
[1719105575173,7.4311,134.57,134.53,7.4329]
[1719105575788,27.4307,134.58,134.53,7.4329]
[1719105576189,20.0,134.58,134.55,7.4318]
[1719105580371,20.0,134.58,134.55,100.0]
[1719105580594,7.4302,134.59,134.55,107.432]
[1719105580976,20.0,134.58,134.55,107.432]
[1719105581496,20.0,134.58,134.53,107.4331]
[1719105581686,7.4305,134.58,134.53,107.4331]
[1719105581883,20.0,134.57,134.53,107.4331]
[1719105583001,20.0,134.57,134.52,7.4336]
[1719105583180,7.4313,134.57,134.52,7.4336]
[1719105583580,7.4317,134.56,134.51,129.9681]
[1719105584501,7.4313,134.57,134.52,7.4336]
[1719105584696,7.4313,134.57,134.53,7.433]
[1719105584878,20.0,134.56,134.53,100.0]
[1719105585274,20.0,134.56,134.51,122.5339]
[1719105585503,20.0,134.56,134.52,7.4333]
[1719105586606,20.0,134.56,134.53,7.4332]
[1719105588978,20.0,134.56,134.53,107.4332]
[1719105589182,27.4302,134.59,134.54,7.4326]
[1719105589386,6.51,134.57,134.54,7.4326]
[1719105589607,20.0,134.56,134.54,7.4326]
[1719105590494,20.0,134.56,134.53,107.433]
[1719105591204,26.51,134.56,134.53,107.433]
[1719105591386,26.51,134.56,134.52,7.4336]
[1719105591587,33.9418,134.56,134.52,7.4336]
[1719105591787,20.0,134.56,134.51,100.0]
[1719105591999,6.51,134.55,134.51,100.0]
[1719105592209,6.51,134.55,134.52,7.4335]
[1719105593408,26.51,134.56,134.53,7.4332]
[1719105594399,20.0,134.56,134.53,107.4332]
[1719105594712,6.51,134.56,134.53,107.4332]
[1719105594903,20.0,134.55,134.53,107.4332]
[1719105595593,20.0,134.55,134.54,7.4327]
[1719105595799,6.51,134.58,134.55,7.4321]
[1719105596000,26.51,134.58,134.55,7.4321]
[1719105596609,26.51,134.58,134.54,7.4324]
[1719105597097,26.51,134.58,134.55,107.4321]
[1719105597298,20.0,134.58,134.56,7.4312]
[1719105597619,26.51,134.6,134.57,100.0]
[1719105597913,20.0,134.6,134.57,107.4309]
[1719105599788,20.0,134.6,134.57,100.0]
[1719105600893,26.51,134.6,134.57,100.0]
[1719105602514,26.51,134.6,134.57,107.4309]
[1719105603112,20.0,134.6,134.57,107.4309]
[1719105603516,26.51,134.61,134.57,107.4309]
[1719105603818,33.9389,134.61,134.57,107.4309]
[1719105604494,13.9397,134.6,134.57,100.0]
[1719105604719,20.0,134.59,134.57,100.0]
[1719105605208,7.4309,134.58,134.53,130.0379]
[1719105605787,7.4309,134.58,134.54,7.4326]
[1719105606004,7.4309,134.58,134.55,100.0]
[1719105606214,27.4302,134.59,134.55,100.0]
[1719105606718,27.4302,134.59,134.55,107.4321]
[1719105607305,6.51,134.58,134.55,107.4321]
[1719105608621,6.51,134.58,134.55,100.0]
[1719105610610,6.51,134.58,134.47,31.93845418]
[1719105610611,35.7491,134.59,134.51,100.0]
[1719105610810,6.51,134.55,134.52,7.4335]
[1719105611324,7.4316,134.56,134.52,7.4335]
[1719105611528,6.51,134.55,134.52,7.4335]
[1719105612033,6.51,134.55,134.51,100.0]
[1719105612710,6.51,134.52,134.49,7.4354]
[1719105612912,6.51,134.5,134.47,7.4362]
[1719105613116,22.7435,134.52,134.47,7.4362]
[1719105613322,6.51,134.49,134.48,7.436]
[1719105614119,6.51,134.49,134.42,23.1796]
[1719105614297,6.51,134.48,134.44,100.0]
[1719105614503,6.51,134.48,134.42,23.1796]
[1719105614504,6.51,134.47,134.42,29.6896]
[1719105614710,6.51,134.47,134.44,100.0]
[1719105615019,6.51,134.47,134.46,7.4369]
[1719105615214,6.51,134.47,134.44,100.0]
[1719105615599,6.51,134.47,134.45,7.4377]
[1719105616526,29.2954,134.52,134.47,7.4365]
[1719105616723,6.51,134.49,134.47,7.4365]
[1719105616912,20.0,134.48,134.47,7.4365]
[1719105617313,6.51,134.5,134.47,7.4365]
[1719105617521,20.0,134.49,134.47,7.4365]
[1719105617923,20.0,134.51,134.48,7.436]
[1719105618105,6.51,134.5,134.48,7.436]
[1719105618622,6.51,134.5,134.47,7.4364]
[1719105619421,20.0,134.51,134.48,100.0]
[1719105619621,20.0,134.51,134.48,107.436]
[1719105620125,20.0,134.51,134.48,100.0]
[1719105620336,20.0,134.51,134.44,100.0]
[1719105620536,7.4352,134.5,134.45,7.4373]
[1719105621401,20.0,134.51,134.44,100.0]
[1719105621601,7.4366,134.47,134.44,100.0]
[1719105622034,7.4357,134.49,134.44,107.4382]
[1719105622410,20.0,134.48,134.44,107.4382]
[1719105623108,7.4377,134.45,134.41,100.0]
[1719105623309,7.4377,134.45,134.4,7.4402]
[1719105623628,7.4382,134.44,134.4,7.4402]
[1719105624002,7.439,134.43,134.38,7.4411]
[1719105624229,7.4385,134.44,134.39,7.4409]
[1719105625324,22.6155,134.45,134.4,7.4403]
[1719105625512,20.0,134.44,134.4,7.4403]
[1719105626016,20.0,134.44,134.41,7.4399]
[1719105626416,20.0,134.44,134.4,7.4402]
[1719105626599,20.0,134.44,134.41,7.4399]
[1719105627207,20.0,134.44,134.39,100.0]
[1719105627208,27.4383,134.44,134.4,7.4403]
[1719105627612,27.4383,134.44,134.39,7.4408]
[1719105628729,27.4383,134.44,134.4,7.4404]
[1719105628929,20.0,134.44,134.4,7.4404]
[1719105630712,20.0,134.44,134.41,7.4398]
[1719105630913,20.0,134.44,134.39,100.0]
[1719105630914,20.0,134.44,134.4,7.4402]
[1719105631109,20.0,134.44,134.41,7.4398]
[1719105631314,20.0,134.44,134.43,7.4388]
[1719105631812,20.0,134.44,134.42,7.4391]
[1719105632013,20.0,134.47,134.42,7.4391]
[1719105632713,7.4371,134.46,134.41,7.4397]
[1719105633041,27.4377,134.45,134.41,7.4397]
[1719105633338,20.0,134.44,134.41,7.4397]
[1719105633837,20.0,134.44,134.42,7.4392]
[1719105634018,20.0,134.45,134.42,7.4392]
[1719105634219,20.0,134.46,134.43,7.4387]
[1719105634423,20.0,134.46,134.44,7.4381]
[1719105634740,20.0,134.47,134.43,7.4385]
[1719105634928,20.0,134.47,134.42,7.439]
[1719105635746,27.4368,134.47,134.4,100.0]
[1719105635926,20.0,134.47,134.42,100.0]
[1719105636238,27.4371,134.47,134.42,7.439]
[1719105637542,7.4372,134.46,134.42,7.439]
[1719105637884,20.0,134.45,134.42,7.439]
[1719105638350,20.0,134.46,134.42,7.439]
[1719105638847,20.0,134.46,134.45,7.4377]
[1719105639142,20.0,134.46,134.43,100.0]
[1719105639143,20.0,134.46,134.44,7.438]
[1719105639354,20.0,134.47,134.44,7.438]
[1719105640343,20.0,134.47,134.43,107.4385]
[1719105640640,20.0,134.47,134.41,100.0]
[1719105640942,20.0,134.47,134.34,21.8723]
[1719105640943,7.4378,134.45,134.4,7.4402]
[1719105641147,7.4372,134.46,134.41,107.4396]
[1719105641315,20.0,134.45,134.41,107.4396]
[1719105641844,20.0,134.45,134.42,7.4392]
[1719105642249,20.0,134.47,134.43,107.4386]
[1719105642547,20.0,134.47,134.43,100.0]
[1719105642852,6.2091,134.51,134.43,100.0]
[1719105642853,20.0,134.5,134.43,100.0]
[1719105643060,7.4358,134.49,134.44,7.4381]
[1719105643351,20.0,134.48,134.44,7.4381]
[1719105643526,27.4361,134.48,134.44,7.4381]
[1719105643952,20.0,134.48,134.45,107.4376]
[1719105644433,20.0,134.48,134.45,100.0]
[1719105644969,7.4342,134.52,134.47,107.4363]
[1719105645246,20.0,134.51,134.47,107.4363]
[1719105645427,20.0,134.51,134.48,7.4359]
[1719105645627,27.4338,134.52,134.47,107.4363]
[1719105646242,20.0,134.52,134.47,100.0]
[1719105646441,7.4349,134.5,134.45,107.4375]
[1719105647749,7.4349,134.5,134.46,7.437]
[1719105648155,7.4346,134.51,134.46,7.437]
[1719105648324,20.0,134.5,134.46,7.437]
[1719105649046,20.0,134.5,134.47,100.0]
[1719105649548,20.0,134.5,134.47,107.4365]
[1719105649748,20.0,134.51,134.47,107.4365]
[1719105651729,20.0,134.51,134.47,100.0]
[1719105651931,20.0,134.52,134.48,7.4358]
[1719105652239,27.4339,134.52,134.48,7.4358]
[1719105652843,27.4339,134.52,134.47,100.0]
[1719105653057,7.4343,134.51,134.46,7.4369]
[1719105653235,20.0,134.5,134.46,7.4369]
[1719105653854,20.0,134.5,134.45,130.6785]
[1719105654037,20.0,134.52,134.44,7.438]
[1719105654237,0.17,134.51,134.44,7.438]
[1719105654435,7.4356,134.49,134.44,7.438]
[1719105654653,0.17,134.51,134.43,100.0]
[1719105654955,7.436,134.48,134.44,7.4382]
[1719105655370,7.436,134.48,134.43,107.4386]
[1719105655735,7.436,134.48,134.44,7.4382]
[1719105656156,7.4357,134.49,134.44,7.4382]
[1719105656358,20.0,134.48,134.44,7.4382]
[1719105657365,20.0,134.48,134.45,7.4376]
[1719105659074,20.0,134.48,134.45,107.4376]
[1719105659251,20.0,134.48,134.41,123.241]
[1719105659252,20.0,134.48,134.47,100.0]
[1719105659459,20.0,134.48,134.47,107.4366]
[1719105659961,20.0,134.48,134.47,100.0]
[1719105660344,20.0,134.48,134.44,7.4381]
[1719105660546,27.4363,134.48,134.43,107.4383]
[1719105661065,20.0,134.48,134.45,107.4376]
[1719105661275,20.0,134.49,134.45,107.4376]
[1719105661769,20.0,134.49,134.46,7.437]
[1719105663349,20.0,134.49,134.45,107.4374]
[1719105664647,15.7167,134.53,134.48,100.0]
[1719105664967,20.0,134.52,134.48,100.0]
[1719105665161,20.0,134.52,134.48,107.4356]
[1719105665369,20.0,134.52,134.46,100.0]
[1719105665557,7.435,134.5,134.46,100.0]
[1719105666753,18.5866,134.51,134.43,100.0]
[1719105666952,7.4367,134.47,134.41,123.241]
[1719105667151,7.4359,134.49,134.44,100.0]
[1719105667366,20.0,134.48,134.44,100.0]
[1719105667552,20.0,134.48,134.46,100.0]
[1719105667895,20.0,134.49,134.46,107.4371]
[1719105669481,20.0,134.49,134.46,100.0]
[1719105669977,20.0,134.49,134.46,107.4371]
[1719105670274,20.0,134.5,134.47,7.4364]
[1719105673575,20.0,134.5,134.46,113.9569]
[1719105674178,29.6701,134.53,134.49,100.0]
[1719105674480,27.4338,134.52,134.49,100.0]
[1719105675260,7.4349,134.5,134.47,106.52]
[1719105675456,20.0,134.52,134.49,100.0]
[1719105675770,26.52,134.52,134.49,100.0]
[1719105676376,20.0,134.52,134.49,100.0]
[1719105678169,20.0,134.52,134.49,107.4353]
[1719105678483,20.0,134.53,134.5,7.4349]
[1719105678662,20.0,134.53,134.51,100.0]
[1719105678861,33.9527,134.54,134.51,100.0]
[1719105679864,33.9527,134.54,134.49,113.9552]
[1719105680283,13.9533,134.53,134.49,100.0]
[1719105680873,7.4338,134.52,134.48,13.9558]
[1719105681161,13.9533,134.53,134.48,13.9558]
[1719105681364,13.9533,134.53,134.49,107.4354]
[1719105682083,6.52,134.53,134.49,107.4354]
[1719105683370,6.52,134.52,134.49,107.4354]
[1719105683572,13.9552,134.5,134.45,107.4375]
[1719105683765,6.52,134.48,134.45,100.0]
[1719105684168,6.52,134.48,134.45,107.4375]
[1719105684792,6.52,134.48,134.46,7.4371]
[1719105685278,6.52,134.49,134.47,7.4365]
[1719105685480,7.4345,134.51,134.47,7.4365]
[1719105685696,20.0,134.5,134.47,7.4365]
[1719105686499,20.0,134.5,134.46,7.4369]
[1719105686673,7.4355,134.49,134.44,7.4378]
[1719105686870,20.0,134.48,134.44,7.4378]
[1719105687281,20.0,134.48,134.43,100.0]
[1719105687469,20.0,134.48,134.45,7.4376]
[1719105687871,20.0,134.49,134.45,7.4376]
[1719105688889,20.0,134.49,134.45,107.4376]
[1719105690978,7.4363,134.48,134.43,7.4386]
[1719105691185,20.0,134.47,134.43,7.4386]
[1719105692597,20.0,134.47,134.43,107.4386]
[1719105693786,20.0,134.47,134.43,107.4385]
[1719105695889,20.0,134.47,134.44,7.4382]
[1719105696196,20.0,134.47,134.43,100.0]
[1719105696381,20.0,134.49,134.43,100.0]
[1719105696995,20.0,134.49,134.45,7.4374]
[1719105697804,27.4355,134.49,134.45,7.4374]
[1719105699415,20.0,134.49,134.45,107.4374]
[1719105702307,20.0,134.49,134.47,100.0]
[1719105702599,20.0,134.49,134.45,107.4375]
[1719105702801,27.4355,134.49,134.45,107.4375]
[1719105703404,20.0,134.49,134.47,100.0]
[1719105703999,27.4355,134.49,134.45,7.4375]
[1719105704192,20.0,134.49,134.45,7.4375]
[1719105704899,20.0,134.49,134.46,100.0]
[1719105705203,27.4356,134.49,134.44,107.4379]
[1719105705422,33.9556,134.49,134.45,7.4376]
[1719105706104,33.9556,134.49,134.46,100.0]
[1719105706311,26.52,134.49,134.46,100.0]
[1719105707686,7.4328,134.54,134.49,107.4351]
[1719105707881,7.4328,134.54,134.5,7.4349]
[1719105707882,6.52,134.54,134.5,7.4349]
[1719105708082,13.9522,134.55,134.51,100.0]
[1719105708308,15.6281,134.57,134.51,100.0]
[1719105708601,13.9525,134.55,134.51,100.0]
[1719105708792,7.4325,134.55,134.51,100.0]
[1719105708991,13.9525,134.55,134.51,100.0]
[1719105709176,15.6281,134.57,134.53,100.0]
[1719105709377,6.52,134.56,134.53,100.0]
[1719105709807,20.0,134.55,134.53,100.0]
[1719105711911,7.76073609,134.59,134.53,100.0]
[1719105712086,26.52,134.58,134.54,7.4324]
[1719105712997,33.9505,134.58,134.53,113.953]
[1719105713200,6.52,134.57,134.53,107.433]
[1719105713385,13.9512,134.57,134.53,100.0]
[1719105713605,6.52,134.56,134.52,7.4337]
[1719105714302,6.52,134.56,134.53,100.0]
[1719105714683,26.52,134.58,134.56,100.0]
[1719105714886,26.52,134.58,134.54,107.4324]
[1719105715590,26.52,134.58,134.55,7.4321]
[1719105716384,26.52,134.58,134.54,107.4325]
[1719105716987,6.52,134.57,134.54,107.4325]
[1719105717387,6.52,134.57,134.55,7.4321]
[1719105718104,6.52,134.57,134.52,106.52]
[1719105718409,6.52,134.56,134.54,100.0]
[1719105718611,20.0,134.58,134.54,107.4326]
[1719105718797,6.52,134.57,134.54,107.4326]
[1719105719802,20.0,134.58,134.54,107.4323]
[1719105720011,26.52,134.58,134.54,107.4323]
[1719105721787,20.0,134.58,134.56,107.4313]
[1719105721989,6.52,134.59,134.56,107.4313]
[1719105722214,20.0,134.58,134.56,107.4313]
[1719105725313,20.0,134.58,134.56,100.0]
[1719105725619,6.52,134.63,134.59,7.4295]
[1719105725804,6.52,134.63,134.6,8.91280438]
[1719105726010,20.0,134.62,134.61,1.48339417]
[1719105726317,13.9467,134.65,134.61,1.48339417]
[1719105726502,20.0,134.64,134.61,1.48339417]
[1719105726704,26.52,134.64,134.6,107.4293]
[1719105727003,33.9472,134.64,134.6,107.4293]
[1719105727203,6.52,134.63,134.6,107.4293]
[1719105728222,26.52,134.64,134.6,107.4293]
[1719105728713,23.9539,134.67,134.62,107.4279]
[1719105728901,20.0,134.66,134.64,100.0]
[1719105729102,6.52,134.67,134.64,100.0]
[1719105729316,6.52,134.68,134.64,100.0]
[1719105729616,6.52,134.68,134.64,107.4269]
[1719105729816,20.0,134.67,134.64,107.4269]
[1719105730200,20.0,134.67,134.65,7.4265]
[1719105730400,6.52,134.68,134.65,7.4265]
[1719105730717,26.52,134.69,134.65,7.4265]
[1719105732115,6.52,134.67,134.64,100.0]
[1719105732310,7.4251,134.68,134.63,7.4272]
[1719105732518,6.52,134.67,134.63,7.4272]
[1719105732904,6.52,134.67,134.64,7.4271]
[1719105733537,6.52,134.67,134.65,100.0]
[1719105733827,20.0,134.69,134.65,107.4265]
[1719105734035,26.52,134.69,134.65,107.4265]
[1719105734709,6.52,134.68,134.65,107.4265]
[1719105736999,6.52,134.67,134.63,100.0]
[1719105737199,6.52,134.66,134.63,107.4274]
[1719105738516,6.52,134.66,134.64,7.4271]
[1719105739249,6.52,134.67,134.65,7.4266]
[1719105741309,20.0,134.69,134.66,7.4261]
[1719105741514,20.0,134.69,134.63,100.0]
[1719105741515,6.52,134.67,134.65,7.4264]
[1719105741715,6.52,134.67,134.66,7.4261]
[1719105742954,20.0,134.69,134.66,7.4261]
[1719105743140,6.52,134.67,134.66,7.4261]
[1719105745453,26.69,134.67,134.62,7.4281]
[1719105745660,6.52,134.64,134.61,7.4286]
[1719105746345,6.52,134.63,134.61,7.4286]
[1719105746537,6.52,134.63,134.62,7.4283]
[1719105749253,6.52,134.63,134.59,7.4297]
[1719105749461,6.52,134.6,134.59,7.4297]
[1719105750042,6.52,134.61,134.6,7.4292]
[1719105750231,26.52,134.62,134.59,100.0]
[1719105750426,26.52,134.62,134.61,7.4288]
[1719105750621,20.0,134.62,134.61,7.4288]
[1719105751253,15.9782,134.66,134.61,100.0]
[1719105751544,15.9782,134.66,134.62,7.428]
[1719105751545,26.52,134.65,134.62,7.428]
[1719105752348,6.52,134.64,134.61,107.4286]
[1719105752533,6.52,134.63,134.61,107.4286]
[1719105753060,20.0,134.65,134.61,107.4286]
[1719105753232,6.52,134.64,134.61,107.4286]
[1719105753431,20.0,134.65,134.61,107.4286]
[1719105757272,20.0,134.65,134.61,7.4286]
[1719105757445,27.4267,134.65,134.6,7.4292]
[1719105758241,27.4267,134.65,134.61,7.4287]
[1719105758947,20.0,134.65,134.61,7.4287]
[1719105760139,27.4268,134.65,134.6,7.4291]
[1719105760458,7.5975,134.64,134.59,7.4296]
[1719105760763,20.0,134.63,134.6,7.4293]
[1719105761053,0.17,134.64,134.6,7.4293]
[1719105762558,7.5972,134.64,134.6,7.4293]
[1719105762848,20.0,134.63,134.6,7.4293]
[1719105763632,20.0,134.63,134.59,7.4297]
[1719105773952,20.0,134.63,134.6,100.0]
[1719105774151,20.0,134.65,134.62,7.4279]
[1719105775474,6.5,134.64,134.62,7.4279]
[1719105775670,20.0,134.63,134.61,7.4286]
[1719105775866,6.5,134.64,134.62,7.4283]
[1719105776459,6.5,134.64,134.61,7.4286]
[1719105776653,6.5,134.64,134.62,7.4281]
[1719105776854,7.4252,134.68,134.63,7.4272]
[1719105777159,7.4241,134.7,134.65,7.4261]
[1719105777360,6.5,134.7,134.68,7.425]
[1719105777667,6.5,134.71,134.67,107.4251]
[1719105780273,16.09005529,134.72,134.67,107.4251]
[1719105780451,6.5,134.71,134.67,107.4251]
[1719105781258,7.4229,134.72,134.67,107.4251]
[1719105781460,6.5,134.71,134.67,107.4251]
[1719105782569,7.4224,134.73,134.67,106.5]
[1719105782779,16.6495,134.76,134.69,7.4243]
[1719105782780,26.5,134.72,134.69,7.4243]
[1719105782947,20.0,134.72,134.69,7.4243]
[1719105784062,20.0,134.72,134.67,106.5]
[1719105784259,20.0,134.72,134.69,100.0]
[1719105784557,20.0,134.72,134.69,107.4243]
[1719105784765,26.5,134.73,134.69,107.4243]
[1719105785161,26.5,134.73,134.71,100.0]
[1719105785365,6.5,134.73,134.71,107.4232]
[1719105785887,6.5,134.74,134.71,107.4232]
[1719105786172,6.5,134.74,134.7,7.4236]
[1719105786370,6.5,134.74,134.71,100.0]
[1719105786675,7.4205,134.77,134.72,7.4225]
[1719105786877,27.4206,134.76,134.72,7.4226]
[1719105787076,6.5,134.75,134.72,7.4226]
[1719105787265,6.5,134.75,134.71,100.0]
[1719105789878,6.5,134.74,134.69,100.0]
[1719105790083,6.5,134.73,134.69,100.0]
[1719105790492,6.5,134.72,134.69,100.0]
[1719105791099,6.5,134.72,134.69,107.4239]
[1719105791267,6.5,134.72,134.7,7.4237]
[1719105791459,7.4214,134.75,134.7,7.4237]
[1719105791679,6.5,134.72,134.7,7.4237]
[1719105793564,6.5,134.72,134.69,100.0]
[1719105794281,6.5,134.73,134.69,100.0]
[1719105797888,6.5,134.73,134.66,21.9103]
[1719105797889,6.5,134.71,134.67,100.0]
[1719105798111,6.5,134.7,134.67,100.0]
[1719105799094,6.5,134.7,134.68,7.4247]
[1719105799288,6.5,134.7,134.69,7.4244]
[1719105799488,6.5,134.73,134.71,7.423]
[1719105800678,6.5,134.73,134.7,7.4236]
[1719105800892,6.5,134.72,134.7,7.4236]
[1719105801608,6.5,134.72,134.67,106.5]
[1719105801899,6.5,134.72,134.67,100.0]
[1719105803294,6.5,134.72,134.7,7.4238]
[1719105805669,6.5,134.72,134.67,100.0]
[1719105806094,6.5,134.71,134.67,100.0]
[1719105806479,6.5,134.71,134.69,7.4242]
[1719105808588,16.6495,134.75,134.71,7.4233]